bitfinex/quotes_BTCUSD_20240908
["timestamp","ask_amount","ask_price","bid_price","bid_amount"]
[1725808731273,0.26959141,54081.0,54080.0,0.71848578]
[1725808732408,0.26936886,54081.0,54080.0,0.71848578]
[1725808732631,0.00069345,54081.0,54080.0,0.71848578]
[1725808733711,0.00069345,54081.0,54080.0,0.70448578]
[1725808734394,0.00069345,54081.0,54080.0,0.71848578]
[1725808734872,0.00069345,54081.0,54080.0,0.70448578]
[1725808735324,0.00069345,54081.0,54080.0,0.71848578]
[1725808736691,0.139286,54097.0,54083.0,0.01]
[1725808736902,1.2526,54096.0,54083.0,0.01]
[1725808738253,1.400485,54096.0,54083.0,0.01]
[1725808740193,1.400485,54096.0,54083.0,0.022]
[1725808740417,0.147888,54095.0,54083.0,0.022]
[1725808740622,1.2526,54096.0,54083.0,0.022]
[1725808740623,0.14789,54094.0,54083.0,0.01]
[1725808740843,0.147888,54095.0,54083.0,0.01]
[1725808741060,0.147888,54095.0,54083.0,0.021]
[1725808741333,1.2526,54096.0,54083.0,0.021]
[1725808741561,0.147901,54091.0,54083.0,0.01]
[1725808741788,0.147899,54091.0,54083.0,0.024]
[1725808742704,1.2526,54094.0,54083.0,0.024]
[1725808743146,1.2526,54094.0,54084.0,0.3888]
[1725808743147,1.400493,54094.0,54084.0,0.3888]
[1725808743396,0.147894,54093.0,54085.0,0.1809]
[1725808744263,1.2526,54094.0,54085.0,0.1809]
[1725808744478,1.400492,54094.0,54085.0,0.1809]
[1725808744687,0.147894,54093.0,54085.0,0.1809]
[1725808745332,0.147894,54093.0,54085.0,0.1949]
[1725808746724,0.147894,54093.0,54085.0,0.1809]
[1725808746939,0.147903,54090.0,54084.0,0.3888]
[1725808747158,0.147897,54092.0,54085.0,0.014]
[1725808747619,1.2526,54091.0,54084.0,0.3888]
[1725808748024,1.2526,54091.0,54085.0,0.014]
[1725808748447,1.2526,54091.0,54084.0,0.3888]
[1725808750013,1.2526,54091.0,54086.0,0.5697]
[1725808750219,1.2526,54091.0,54087.0,0.3888]
[1725808751342,1.2526,54091.0,54088.0,0.1809]
[1725808751538,1.2526,54091.0,54089.0,0.3888]
[1725808751745,1.2526,54091.0,54090.0,0.5717]
[1725808751955,1.2526,54091.0,54090.0,0.66500607]
[1725808752468,1.253414,54097.0,54092.0,0.3988]
[1725808752673,1.253414,54097.0,54096.0,0.002]
[1725808752908,0.000814,54097.0,54096.0,0.5717]
[1725808753116,0.000814,54097.0,54096.0,0.66500607]
[1725808754435,0.000814,54097.0,54096.0,0.67900607]
[1725808754639,0.000814,54097.0,54096.0,0.68900607]
[1725808754847,0.000814,54097.0,54096.0,0.67500607]
[1725808756388,0.000814,54097.0,54096.0,0.68900607]
[1725808757054,0.000814,54097.0,54096.0,0.67500607]
[1725808757307,0.000814,54097.0,54096.0,0.68900607]
[1725808757960,0.000814,54097.0,54096.0,0.67500607]
[1725808758168,0.000814,54097.0,54096.0,0.68900607]
[1725808760113,0.000814,54097.0,54096.0,0.67500607]
[1725808760547,0.000814,54097.0,54096.0,0.68900607]
[1725808760967,0.000814,54097.0,54096.0,0.67500607]
[1725808761358,0.000814,54097.0,54096.0,0.68900607]
[1725808763070,0.000814,54097.0,54096.0,1.14157878]
[1725808763274,0.000814,54097.0,54096.0,1.12757878]
[1725808763521,0.000814,54097.0,54096.0,0.96138646]
[1725808763764,0.000814,54097.0,54096.0,0.585328]
[1725808763971,0.000814,54097.0,54096.0,0.595328]
[1725808764222,0.000814,54097.0,54096.0,0.581328]
[1725808764473,0.000814,54097.0,54096.0,0.68914961]
[1725808764904,0.000814,54097.0,54096.0,0.67514961]
[1725808765317,0.000814,54097.0,54096.0,0.68914961]
[1725808766606,0.000814,54097.0,54096.0,0.67514961]
[1725808767054,0.000814,54097.0,54096.0,0.68914961]
[1725808767472,0.000814,54097.0,54096.0,0.571328]
[1725808767672,0.000814,54097.0,54096.0,0.581328]
[1725808767897,0.000814,54097.0,54096.0,0.595328]
[1725808768259,0.000814,54097.0,54096.0,0.958328]
[1725808768672,0.000814,54097.0,54096.0,0.777428]
[1725808768850,0.000814,54097.0,54096.0,0.763428]
[1725808770037,0.000814,54097.0,54096.0,0.85742436]
[1725808770467,0.000814,54097.0,54096.0,0.87142436]
[1725808770899,0.000814,54097.0,54096.0,0.84742436]
[1725808771100,1.400455,54107.0,54099.0,0.01]
[1725808771101,0.98595982,54105.0,54099.0,0.01]
[1725808772709,1.13382082,54105.0,54099.0,0.01]
[1725808773813,1.13382082,54105.0,54098.0,0.01]
[1725808774027,1.13382082,54105.0,54099.0,0.014]
[1725808774028,0.14764052,54104.0,54099.0,0.014]
[1725808774446,0.98595982,54103.0,54098.0,0.01]
[1725808774896,0.98595982,54103.0,54099.0,0.014]
[1725808775327,0.98595982,54103.0,54098.0,0.01]
[1725808775759,0.98595982,54103.0,54098.0,0.024]
[1725808777137,0.98595982,54103.0,54098.0,0.01]
[1725808777357,0.98595982,54103.0,54099.0,0.2048]
[1725808777972,0.98595982,54103.0,54099.0,0.1908]
[1725808780411,0.98595982,54104.0,54099.0,0.2048]
[1725808780866,0.98595982,54104.0,54099.0,0.1908]
[1725808781105,0.98595982,54104.0,54099.0,0.2048]
[1725808781532,0.98595982,54104.0,54099.0,0.1908]
[1725808781957,0.98595982,54104.0,54099.0,0.2048]
[1725808782839,0.98595982,54104.0,54100.0,0.387]
[1725808783369,0.01,54111.0,54099.0,0.2048]
[1725808783370,0.18535408,54148.0,54142.0,0.86]
[1725808783664,0.05497365,54173.0,54172.0,0.87]
[1725808783939,0.05497365,54203.0,54202.0,0.03]
[1725808784157,0.386,54214.0,54203.0,0.556197]
[1725808784158,0.1846,54210.0,54203.0,0.556197]
[1725808784375,0.1846,54210.0,54190.0,0.01]
[1725808784376,0.18475239,54204.0,54201.0,0.51999777]
[1725808784636,0.18475239,54204.0,54195.0,0.12889479]
[1725808784637,0.18475239,54204.0,54202.0,0.45625535]
[1725808784887,0.18475239,54204.0,54203.0,0.05813205]
[1725808785129,0.23376188,54203.0,54183.0,0.21133348]
[1725808785363,0.18475239,54195.0,54182.0,0.05494779]
[1725808785573,0.533618,54194.0,54181.0,0.363]
[1725808785803,0.18475239,54193.0,54183.0,0.002]
[1725808786567,0.18475239,54193.0,54181.0,0.363]
[1725808786568,0.18475239,54193.0,54186.0,0.002]
[1725808786771,0.18475239,54193.0,54181.0,0.363]
[1725808787440,0.1,54192.0,54184.0,0.002]
[1725808787673,0.18475239,54191.0,54184.0,0.002]
[1725808787883,0.33237839,54191.0,54184.0,0.002]
[1725808788066,0.18475239,54191.0,54184.0,0.002]
[1725808789324,0.18475239,54191.0,54181.0,0.373]
[1725808789325,0.1623854,54190.0,54181.0,0.373]
[1725808789774,0.1623854,54190.0,54181.0,0.363]
[1725808790239,0.1623854,54190.0,54184.0,0.012]
[1725808790660,0.1623854,54190.0,54184.0,0.002]
[1725808790661,0.147631,54189.0,54184.0,0.002]
[1725808790874,0.31018969,54188.0,54181.0,0.377]
[1725808791118,0.16255569,54188.0,54181.0,0.377]
[1725808791369,0.147642,54185.0,54180.0,0.002]
[1725808791824,0.147642,54185.0,54184.0,0.014]
[1725808793522,0.147642,54185.0,54173.0,0.5]
[1725808793730,0.147645,54184.0,54173.0,0.5]
[1725808793951,0.147645,54184.0,54181.0,0.014]
[1725808794177,0.332245,54184.0,54183.0,0.002]
[1725808795503,0.332245,54184.0,54183.0,0.016]
[1725808796855,0.332245,54184.0,54183.0,0.002]
[1725808797067,0.627535,54184.0,54183.0,0.016]
[1725808797921,0.627535,54184.0,54183.0,0.002]
[1725808798403,0.627535,54184.0,54183.0,0.016]
[1725808800007,0.1849,54191.0,54183.0,0.017626]
[1725808800235,0.147643,54185.0,54183.0,0.017626]
[1725808800701,0.147634,54188.0,54187.0,0.002]
[1725808800945,0.442902,54188.0,54187.0,0.002]
[1725808801203,0.738172,54188.0,54187.0,0.002]
[1725808802291,0.738172,54188.0,54187.0,0.016]
[1725808802292,0.147634,54188.0,54187.0,0.016]
[1725808802524,0.442902,54188.0,54187.0,0.016]
[1725808802750,1.033438,54188.0,54187.0,0.016]
[1725808802967,0.73817,54188.0,54187.0,0.016]
[1725808803418,0.73817,54188.0,54187.0,0.014]
[1725808803627,0.73817,54188.0,54170.0,0.01]
[1725808803628,0.3881,54183.0,54169.0,0.002]
[1725808803884,0.443049,54170.0,54169.0,0.002]
[1725808804126,0.443049,54170.0,54168.0,0.002]
[1725808804127,0.147685,54169.0,54168.0,0.002]
[1725808804379,0.46095072,54169.0,54168.0,0.002]
[1725808804862,0.75632172,54169.0,54168.0,0.002]
[1725808805079,1.14442172,54169.0,54168.0,0.002]
[1725808806775,1.43979272,54169.0,54168.0,0.002]
[1725808807031,0.70136572,54169.0,54159.0,0.002]
[1725808807247,0.73855,54160.0,54159.0,0.002]
[1725808807548,0.4626438,54160.0,54159.0,0.002]
[1725808809176,0.4636438,54160.0,54159.0,0.003]
[1725808809597,0.1682238,54160.0,54159.0,0.003]
[1725808809816,0.0205138,54160.0,54159.0,0.003]
[1725808810028,0.783471,54169.0,54159.0,0.003]
[1725808810029,0.295399,54164.0,54159.0,0.003]
[1725808810269,0.147706,54162.0,54159.0,0.003]
[1725808810515,0.147708,54161.0,54159.0,0.002]
[1725808810947,0.001,54160.0,54159.0,0.016]
[1725808811403,0.783471,54169.0,54159.0,0.016]
[1725808811404,0.783474,54169.0,54159.0,0.002]
[1725808811633,0.147692,54167.0,54159.0,0.002]
[1725808811889,0.001,54161.0,54159.0,0.016]
[1725808812117,0.001,54161.0,54159.0,0.017626]
[1725808812334,0.147698,54165.0,54159.0,0.003626]
[1725808812596,0.001,54160.0,54159.0,0.017626]
[1725808813912,0.14771,54160.0,54159.0,0.003626]
[1725808814135,0.73855,54160.0,54159.0,0.003626]
[1725808814346,0.73855,54160.0,54159.0,0.017626]
[1725808814565,1.03397,54160.0,54159.0,0.017626]
[1725808814801,1.03397,54160.0,54137.0,0.12]
[1725808814802,0.443188,54153.0,54152.0,0.002]
[1725808815050,0.738647,54153.0,54152.0,0.002]
[1725808817351,0.738647,54153.0,54152.0,0.016]
[1725808818212,0.738647,54153.0,54152.0,0.002]
[1725808818644,0.738647,54153.0,54152.0,0.016]
[1725808819108,0.738647,54153.0,54152.0,0.002]
[1725808820189,0.147729,54153.0,54152.0,0.002]
[1725808820412,0.148729,54153.0,54152.0,0.016]
[1725808821059,0.295442,54157.0,54152.0,0.002]
[1725808821275,0.001,54153.0,54152.0,0.012]
[1725808822174,0.001,54153.0,54149.0,0.5763]
[1725808822175,0.147719,54157.0,54156.0,0.002]
[1725808823554,0.147719,54157.0,54152.0,0.014]
[1725808823555,0.247714,54159.0,54158.0,0.002]
[1725808823802,0.147703,54163.0,54162.0,0.002]
[1725808824092,0.543107,54163.0,54162.0,0.002]
[1725808824308,0.543107,54163.0,54152.0,0.014]
[1725808824309,0.44313,54160.0,54159.0,0.002]
[1725808824543,0.73855,54160.0,54159.0,0.002]
[1725808825013,0.395404,54163.0,54162.0,0.002]
[1725808825694,0.543106,54163.0,54162.0,0.002]
[1725808827528,0.543106,54163.0,54162.0,0.015]
[1725808827529,0.83951,54163.0,54162.0,0.015]
[1725808827681,0.544106,54163.0,54162.0,0.015]
[1725808827892,0.543106,54163.0,54162.0,0.002]
[1725808828312,0.544106,54163.0,54162.0,0.016]
[1725808829219,0.101,54163.0,54162.0,0.016]
[1725808829458,0.148702,54163.0,54162.0,0.016]
[1725808829646,0.248702,54163.0,54162.0,0.016]
[1725808829910,0.001,54163.0,54162.0,0.016]
[1725808830345,0.295386,54167.0,54164.0,0.002]
[1725808830599,0.443077,54167.0,54166.0,0.002]
[1725808830818,0.543077,54167.0,54166.0,0.002]
[1725808832185,0.543077,54167.0,54166.0,0.016]
[1725808832422,0.001,54167.0,54166.0,0.016]
[1725808833767,0.001,54167.0,54166.0,0.11531496]
[1725808834014,0.00017493,54167.0,54166.0,0.11531496]
[1725808834712,0.247669,54175.0,54174.0,0.002]
[1725808834927,0.1,54175.0,54174.0,0.002]
[1725808835140,0.1,54176.0,54175.0,0.002]
[1725808836079,0.1964,54182.0,54175.0,0.002]
[1725808836316,0.442961,54181.0,54180.0,0.002]
[1725808836549,0.442959,54181.0,54180.0,0.002]
[1725808836977,0.738265,54181.0,54180.0,0.002]
[1725808837406,0.838265,54181.0,54180.0,0.002]
[1725808837920,0.738292,54179.0,54178.0,0.002]
[1725808838208,0.738292,54179.0,54162.0,0.52774857]
[1725808838209,0.73832,54177.0,54176.0,0.002]
[1725808838869,0.442992,54177.0,54176.0,0.002]
[1725808840451,0.442992,54177.0,54176.0,0.016]
[1725808840869,0.442992,54177.0,54176.0,0.002]
[1725808841084,0.442992,54177.0,54176.0,0.016]
[1725808841517,0.442992,54177.0,54176.0,0.002]
[1725808842012,0.443016,54174.0,54173.0,0.002]
[1725808842236,0.147687,54169.0,54163.0,0.05513051]
[1725808842483,0.147687,54169.0,54162.0,0.58269577]
[1725808842484,0.147686,54169.0,54162.0,0.55513051]
[1725808842692,0.443047,54171.0,54170.0,0.002]
[1725808842904,0.14768,54172.0,54169.0,0.002]
[1725808843149,0.443026,54173.0,54172.0,0.002]
[1725808844249,0.443026,54173.0,54172.0,0.016]
[1725808844456,0.443026,54173.0,54172.0,0.014]
[1725808844898,0.147684,54170.0,54162.0,0.55513051]
[1725808845130,0.147684,54170.0,54169.0,0.002]
[1725808846582,0.295357,54172.0,54171.0,0.002]
[1725808846583,0.14768,54172.0,54171.0,0.002]
[1725808848072,0.443022,54174.0,54173.0,0.002]
[1725808850510,0.147674,54174.0,54173.0,0.016]
[1725808850968,0.443018,54174.0,54173.0,0.016]
[1725808851185,0.147674,54174.0,54173.0,0.002]
[1725808852451,0.443,54176.0,54175.0,0.002]
[1725808854043,0.147667,54176.0,54175.0,0.016]
[1725808854687,0.1964,54188.0,54183.0,0.002]
[1725808854926,0.000814,54203.0,54183.0,0.002]
[1725808854927,0.295261,54190.0,54183.0,0.002]
[1725808855152,0.295261,54190.0,54176.0,0.11050939]
[1725808855153,0.73815,54190.0,54189.0,0.002]
[1725808855372,0.73815,54190.0,54182.0,0.05523137]
[1725808855373,0.73817,54188.0,54187.0,0.002]
[1725808855574,0.442902,54188.0,54187.0,0.002]
[1725808856661,0.442902,54188.0,54187.0,0.016]
[1725808858728,0.442902,54188.0,54187.0,0.002]
[1725808858945,0.442902,54188.0,54187.0,0.016]
[1725808859384,0.442902,54188.0,54187.0,0.002]
[1725808859808,0.442902,54188.0,54187.0,0.016]
[1725808860267,0.147629,54190.0,54189.0,0.002]
[1725808862450,0.442886,54190.0,54189.0,0.002]
[1725808862652,0.442886,54190.0,54189.0,0.016]
[1725808862867,0.738143,54190.0,54189.0,0.014]
[1725808863115,1.151043,54190.0,54189.0,0.014]
[1725808863320,1.4463,54190.0,54189.0,0.014]
[1725808864660,0.442926,54185.0,54184.0,0.002]
[1725808865755,0.442926,54185.0,54184.0,0.016]
[1725808866381,0.442926,54185.0,54176.0,0.05515256]
[1725808866382,0.147649,54183.0,54176.0,0.41815256]
[1725808866594,0.295292,54184.0,54183.0,0.002]
[1725808866794,0.442937,54184.0,54183.0,0.002]
[1725808867149,0.147651,54182.0,54176.0,0.41815256]
[1725808867364,0.147651,54182.0,54181.0,0.002]
[1725808867764,0.147647,54183.0,54182.0,0.502]
[1725808869254,0.147647,54183.0,54182.0,0.516]
[1725808869458,0.295275,54187.0,54186.0,0.002]
[1725808869716,0.147636,54187.0,54186.0,0.002]
[1725808870157,1.400232,54189.0,54186.0,0.002]
[1725808870361,1.400232,54189.0,54188.0,0.002]
[1725808871074,1.400232,54189.0,54188.0,0.502]
[1725808872093,1.990756,54189.0,54188.0,0.502]
[1725808872273,1.990756,54189.0,54188.0,0.516]
[1725808873067,1.990756,54189.0,54186.0,0.002]
[1725808873068,0.738182,54187.0,54186.0,0.002]
[1725808874413,0.147636,54187.0,54186.0,0.002]
[1725808874829,1.547862,54189.0,54188.0,0.502]
[1725808875036,1.400231,54189.0,54188.0,0.502]
[1725808875451,1.695493,54189.0,54188.0,0.502]
[1725808875868,1.400231,54189.0,54188.0,0.502]
[1725808876280,0.147631,54189.0,54188.0,0.502]
[1725808876491,0.147631,54189.0,54188.0,0.516]
[1725808876735,0.442893,54189.0,54188.0,0.516]
[1725808877188,0.147631,54189.0,54188.0,0.516]
[1725808877906,0.147631,54189.0,54188.0,0.502]
[1725808878321,0.147631,54189.0,54188.0,0.516]
[1725808878545,0.442893,54189.0,54188.0,0.516]
[1725808878757,0.442893,54189.0,54188.0,0.502]
[1725808879201,0.442893,54189.0,54188.0,0.516]
[1725808880986,0.442893,54189.0,54188.0,0.502]
[1725808881196,0.442893,54189.0,54188.0,0.516]
[1725808881824,0.442893,54189.0,54188.0,0.502]
[1725808882271,0.442893,54189.0,54188.0,0.516]
[1725808882714,0.738155,54189.0,54188.0,0.516]
[1725808882934,0.442893,54189.0,54188.0,0.516]
[1725808885098,0.738155,54189.0,54188.0,0.516]
[1725808885321,0.442893,54189.0,54188.0,0.516]
[1725808885780,0.738155,54189.0,54188.0,0.516]
[1725808886462,0.442893,54189.0,54188.0,0.516]
[1725808887337,0.443707,54189.0,54188.0,0.516]
[1725808887558,0.738969,54189.0,54188.0,0.516]
[1725808888031,0.443707,54189.0,54188.0,0.516]
[1725808888265,1.696307,54189.0,54188.0,0.516]
[1725808888947,1.991569,54189.0,54188.0,0.516]
[1725808889167,1.696307,54189.0,54188.0,0.516]
[1725808889405,1.991569,54189.0,54188.0,0.516]
[1725808889883,1.696307,54189.0,54188.0,0.516]
[1725808892793,1.401045,54189.0,54188.0,0.516]
[1725808892995,1.696307,54189.0,54188.0,0.516]
[1725808893624,1.696307,54189.0,54188.0,0.57126616]
[1725808894221,0.443707,54189.0,54188.0,0.57126616]
[1725808894634,0.148445,54189.0,54188.0,0.57126616]
[1725808895671,0.148445,54189.0,54188.0,0.516]
[1725808896431,0.148445,54189.0,54188.0,0.59889924]
[1725808896635,0.000813,54191.0,54188.0,0.5713427]
[1725808896821,0.147631,54189.0,54188.0,0.5713427]
[1725808897241,0.442893,54189.0,54188.0,0.514]
[1725808897495,1.118655,54189.0,54188.0,0.014]
[1725808897691,1.118655,54189.0,54185.0,0.001628]
[1725808897692,0.442918,54186.0,54185.0,0.001628]
[1725808897910,1.033476,54186.0,54185.0,0.001628]
[1725808898175,2.214979,54186.0,54177.0,0.0555649]
[1725808898398,0.147666,54176.0,54175.0,0.5]
[1725808898617,0.443025,54173.0,54172.0,0.0553427]
[1725808898813,0.738387,54172.0,54171.0,0.0553427]
[1725808899048,0.738387,54172.0,54167.0,0.501626]
[1725808899049,0.14768,54171.0,54170.0,0.0553427]
[1725808899252,0.738415,54170.0,54169.0,0.0553427]
[1725808899475,0.738415,54170.0,54169.0,0.002]
[1725808899993,0.147688,54168.0,54167.0,0.58652524]
[1725808900215,0.147688,54168.0,54167.0,0.503626]
[1725808900430,0.147688,54168.0,54167.0,0.58652524]
[1725808900643,0.147688,54168.0,54167.0,0.503626]
[1725808901058,0.147688,54168.0,54167.0,0.58652524]
[1725808901260,0.147688,54168.0,54167.0,0.503626]
[1725808901469,0.444065,54168.0,54167.0,0.517626]
[1725808901875,0.443065,54168.0,54167.0,0.503626]
[1725808902090,0.147688,54168.0,54167.0,0.503626]
[1725808902313,0.147688,54168.0,54167.0,0.517626]
[1725808902314,0.148688,54168.0,54167.0,0.517626]
[1725808902527,1.547933,54176.0,54167.0,0.517626]
[1725808902528,0.295344,54175.0,54174.0,0.002]
[1725808902735,0.147669,54175.0,54174.0,0.002]
[1725808903166,1.400269,54175.0,54174.0,0.002]
[1725808903384,1.2526,54175.0,54174.0,0.002]
[1725808903601,1.400269,54175.0,54174.0,0.002]
[1725808904046,1.400269,54175.0,54174.0,0.016]
[1725808904491,1.400269,54175.0,54174.0,0.002]
[1725808904709,1.696608,54175.0,54174.0,0.03]
[1725808904923,1.69638588,54175.0,54174.0,0.03]
[1725808905594,1.40104688,54175.0,54174.0,0.03]
[1725808906241,1.69638588,54175.0,54174.0,0.03]
[1725808906673,1.99172488,54175.0,54174.0,0.03]
[1725808907784,1.69638588,54175.0,54174.0,0.03]
[1725808908003,0.444008,54175.0,54174.0,0.03]
[1725808912536,0.444008,54175.0,54174.0,0.031628]
[1725808913581,0.001,54175.0,54174.0,0.031628]
[1725808915448,0.001,54175.0,54174.0,0.12580452]
[1725808915704,0.001,54175.0,54174.0,0.18108776]
[1725808916152,0.001,54175.0,54174.0,0.031628]
[1725808916385,0.148669,54175.0,54174.0,0.029628]
[1725808916599,0.148669,54175.0,54174.0,0.031628]
[1725808917871,0.001,54175.0,54174.0,0.08690826]
[1725808918110,0.001,54175.0,54174.0,0.031628]
[1725808919023,0.148669,54175.0,54174.0,0.08691016]
[1725808920553,2.09315574,54175.0,54174.0,0.00489638]
[1725808921416,1.992325,54175.0,54174.0,0.001628]
[1725808921655,1.992325,54175.0,54174.0,0.015628]
[1725808921869,1.033819,54168.0,54167.0,0.001626]
[1725808922111,2.83420208,54168.0,54167.0,0.001626]
[1725808922341,1.59727,54160.0,54159.0,0.001626]
[1725808922866,1.99269,54160.0,54159.0,0.001626]
[1725808924163,1.034106,54153.0,54152.0,0.001626]
[1725808924396,0.443269,54143.0,54142.0,0.365]
[1725808924618,1.302082,54143.0,54142.0,0.002]
[1725808924824,1.597595,54143.0,54142.0,0.002]
[1725808925672,0.920482,54143.0,54142.0,0.002]
[1725808926340,0.921482,54143.0,54142.0,0.002]
[1725808926561,1.215995,54143.0,54142.0,0.002]
[1725808927199,1.216995,54143.0,54142.0,0.009]
[1725808927655,1.215995,54143.0,54142.0,0.002]
[1725808928085,0.922482,54143.0,54142.0,0.007]
[1725808928304,1.217995,54143.0,54142.0,0.007]
[1725808928523,1.217995,54143.0,54142.0,0.005]
[1725808928765,1.216995,54143.0,54142.0,0.005]
[1725808929678,0.738837,54139.0,54138.0,0.002]
[1725808930100,1.68054308,54139.0,54138.0,0.002]
[1725808930328,1.97607808,54139.0,54138.0,0.002]
[1725808932075,1.97807808,54139.0,54138.0,0.006]
[1725808932533,1.97707808,54139.0,54138.0,0.004]
[1725808932763,2.65521308,54139.0,54138.0,0.004]
[1725808932975,3.02189615,54139.0,54138.0,0.004]
[1725808933185,2.93691308,54139.0,54138.0,0.004]
[1725808933613,3.23144808,54139.0,54138.0,0.004]
[1725808933830,3.23144808,54139.0,54130.0,0.00162]
[1725808933831,1.416126,54131.0,54130.0,0.00162]
[1725808934072,2.93111108,54131.0,54130.0,0.00162]
[1725808934532,2.98574423,54131.0,54130.0,0.00162]
[1725808935148,2.93111108,54131.0,54130.0,0.00162]
[1725808935396,2.93111108,54131.0,54130.0,0.00362]
[1725808935896,2.93211108,54131.0,54130.0,0.00362]
[1725808937423,3.11709415,54131.0,54130.0,0.00362]
[1725808937863,2.93211108,54131.0,54130.0,0.00362]
[1725808938309,2.78432208,54131.0,54130.0,0.00362]
[1725808938532,1.324997,54120.0,54112.0,0.00162]
[1725808938780,2.85398108,54120.0,54112.0,0.00162]
[1725808939004,2.95398108,54120.0,54112.0,0.00162]
[1725808939237,3.24962008,54120.0,54112.0,0.00162]
[1725808939721,3.43460315,54120.0,54112.0,0.00162]
[1725808940381,3.43560315,54120.0,54112.0,0.00162]
[1725808940600,1.330497,54115.0,54112.0,0.00162]
[1725808940844,2.016397,54115.0,54112.0,0.00162]
[1725808941301,1.513346,54113.0,54112.0,0.00162]
[1725808941562,1.916446,54113.0,54112.0,0.00162]
[1725808941792,2.016446,54113.0,54112.0,0.00162]
[1725808942278,2.016446,54113.0,54102.0,0.002]
[1725808942279,1.620923,54105.0,54102.0,0.002]
[1725808942508,2.64398278,54105.0,54102.0,0.002]
[1725808942748,2.55862908,54105.0,54102.0,0.002]
[1725808943228,2.15552908,54105.0,54102.0,0.002]
[1725808943460,2.15552908,54105.0,54104.0,0.00362]
[1725808943676,1.97272908,54105.0,54104.0,0.00362]
[1725808944568,1.97272908,54105.0,54104.0,0.00662]
[1725808945041,1.97272908,54105.0,54104.0,0.00362]
[1725808945251,1.97372908,54105.0,54104.0,0.01062]
[1725808947511,1.97272908,54105.0,54104.0,0.00362]
[1725808948167,2.45022741,54105.0,54104.0,0.00162]
[1725808948389,0.739342,54102.0,54101.0,0.00162]
[1725808948601,1.135079,54102.0,54101.0,0.00162]
[1725808948822,1.430816,54102.0,54101.0,0.00162]
[1725808949043,1.57549584,54102.0,54101.0,0.00162]
[1725808949304,1.430816,54102.0,54101.0,0.00162]
[1725808949749,2.016716,54102.0,54101.0,0.00162]
[1725808950874,2.019716,54102.0,54101.0,0.00162]
[1725808951360,2.016716,54102.0,54101.0,0.00162]
[1725808951824,2.020716,54102.0,54101.0,0.00162]
[1725808952282,2.20569907,54102.0,54101.0,0.00162]
[1725808952521,2.020716,54102.0,54101.0,0.00162]
[1725808953451,2.016716,54102.0,54101.0,0.00162]
[1725808953691,2.019716,54102.0,54101.0,0.00162]
[1725808953931,1.616616,54102.0,54101.0,0.00162]
[1725808954153,2.55132208,54102.0,54101.0,0.00162]
[1725808954603,2.55232208,54102.0,54101.0,0.00162]
[1725808955062,2.55132208,54102.0,54101.0,0.00162]
[1725808955287,2.55332208,54102.0,54101.0,0.00162]
[1725808955960,2.96772208,54102.0,54101.0,0.00162]
[1725808956153,0.147907,54088.0,54081.0,0.3818]
[1725808956404,1.67562108,54088.0,54080.0,0.5]
[1725808956646,2.07143508,54088.0,54080.0,0.5]
[1725808957116,2.07143508,54088.0,54077.0,0.5747]
[1725808957800,2.07243508,54088.0,54087.0,0.00762]
[1725808958031,2.07243508,54088.0,54087.0,0.00562]
[1725808958275,2.07243508,54088.0,54087.0,0.00362]
[1725808958276,2.07143508,54088.0,54087.0,0.00362]
[1725808958501,2.07143508,54088.0,54087.0,0.00562]
[1725808958733,2.07121276,54088.0,54087.0,0.00562]
[1725808959196,2.83319583,54088.0,54087.0,0.00562]
[1725808959430,2.64821276,54088.0,54087.0,0.00562]
[1725808960278,2.64821276,54088.0,54087.0,0.00762]
[1725808960509,2.64821276,54088.0,54087.0,0.00562]
[1725808961156,2.64821276,54088.0,54087.0,0.00162]
[1725808961494,2.64921276,54088.0,54087.0,0.00562]
[1725808961725,2.25781276,54088.0,54087.0,0.00562]
[1725808962792,2.07121276,54088.0,54087.0,0.00362]
[1725808963213,2.07121276,54088.0,54087.0,0.00562]
[1725808963214,1.13612668,54088.0,54087.0,0.00562]
[1725808963423,1.55622663,54088.0,54087.0,0.00562]
[1725808963625,1.55522663,54088.0,54087.0,0.00162]
[1725808964051,1.55622663,54088.0,54087.0,0.00562]
[1725808964465,1.55522663,54088.0,54087.0,0.00162]
[1725808964903,1.43094068,54088.0,54087.0,0.00562]
[1725808965546,1.13512668,54088.0,54087.0,0.00562]
[1725808965757,1.13512668,54088.0,54087.0,0.00762]
[1725808965968,1.13512668,54088.0,54087.0,0.00362]
[1725808966410,1.13512668,54088.0,54087.0,0.00762]
[1725808966868,1.13512668,54088.0,54087.0,0.00362]
[1725808967306,1.13512668,54088.0,54087.0,0.00862]
[1725808967756,1.13512668,54088.0,54087.0,0.00362]
[1725808967982,1.13612668,54088.0,54087.0,0.01262]
[1725808969047,2.07221276,54088.0,54087.0,0.01262]
[1725808969386,2.07121276,54088.0,54087.0,0.00362]
[1725808969808,2.07221276,54088.0,54087.0,0.01462]
[1725808970261,2.07121276,54088.0,54087.0,0.00362]
[1725808970480,2.07221276,54088.0,54087.0,0.01562]
[1725808970912,0.001,54088.0,54087.0,0.39742]
[1725808971135,0.186415,54104.0,54090.0,0.502]
[1725808971136,0.000815,54104.0,54090.0,0.502]